bitfinex-derivatives/quotes_SOLF0:USTF0_20260310
["timestamp","ask_amount","ask_price","bid_price","bid_amount"]
[1773166786994,49.91154905,86.769,86.626,161.589]
[1773166787195,59.02006793,86.75,86.65,9.10761892]
[1773166787497,49.91244901,86.729,86.63,9.10761892]
[1773166788000,9.10761892,86.71,86.646,10.385]
[1773166788199,59.03370446,86.71,86.588,161.66]
[1773166788390,59.03370446,86.71,86.61,9.10761892]
[1773166789403,59.03370446,86.71,86.655,10.384]
[1773166790703,9.10761892,86.73,86.655,10.384]
[1773166791001,9.10761892,86.73,86.665,10.383]
[1773166791596,10.375,86.731,86.665,10.383]
[1773166791805,10.376,86.721,86.654,10.384]
[1773166792200,60.29292735,86.721,86.654,10.384]
[1773166792500,60.29392735,86.712,86.643,10.385]
[1773166792701,49.91692735,86.712,86.643,10.385]
[1773166792907,60.29692735,86.689,86.59,9.10761892]
[1773166793205,49.91692735,86.689,86.59,9.10761892]
[1773166793604,49.91692735,86.689,86.551,161.729]
[1773166793605,49.91692735,86.689,86.58,9.10761892]
[1773166794105,9.10761892,86.65,86.546,20.794]
[1773166794300,9.10761892,86.63,86.54,9.10761892]
[1773166794501,49.92656971,86.649,86.54,9.10761892]
[1773166795007,49.92656971,86.649,86.59,10.392]
[1773166795208,49.92656971,86.672,86.56,9.10761892]
[1773166795506,49.92656971,86.669,86.56,9.10761892]
[1773166795906,49.92656971,86.669,86.58,9.10761892]
[1773166796304,9.10761892,86.69,86.6,9.10761892]
[1773166796508,50.00869409,86.689,86.6,9.10761892]
[1773166796705,50.00869409,86.689,86.58,9.10761892]
[1773166797205,50.00869409,86.689,86.551,161.73]
[1773166797206,50.00869409,86.689,86.6,9.10761892]
[1773166797603,50.00869409,86.689,86.58,9.10761892]
[1773166797604,50.00869409,86.689,86.563,161.707]
[1773166797804,50.00869409,86.689,86.59,9.10761892]
[1773166798902,10.38,86.686,86.625,10.388]
[1773166799604,10.38,86.686,86.59,9.10761892]
[1773166799605,9.10761892,86.67,86.59,9.10761892]
[1773166799803,59.10966166,86.67,86.57,9.10761892]
[1773166800209,10.384,86.657,86.59,10.392]
[1773166800407,59.10966166,86.67,86.56,9.10761892]
[1773166800408,9.10761892,86.65,86.56,9.10761892]
[1773166800608,59.09635647,86.65,86.56,9.10761892]
[1773166800809,49.98873755,86.647,86.584,10.392]
[1773166801306,49.98873755,86.647,86.55,9.10761892]
[1773166801307,49.98873755,86.647,86.588,10.392]
[1773166801513,49.98873755,86.629,86.53,9.10761892]
[1773166801809,49.98873755,86.629,86.498,20.85633736]
[1773166801810,49.98873755,86.609,86.55,10.397]
[1773166802003,49.98873755,86.609,86.51,9.10761892]
[1773166802204,49.98873755,86.609,86.517,2.00999801]
[1773166802506,49.98519054,86.633,86.53,9.10761892]
[1773166802706,49.98519054,86.629,86.53,9.10761892]
[1773166802907,59.09280946,86.61,86.517,2.00999801]
[1773166803410,49.98519054,86.61,86.517,2.00999801]
[1773166803607,49.98519054,86.61,86.552,10.396]
[1773166803912,49.98519054,86.599,86.5,9.10761892]
[1773166804111,49.98519054,86.599,86.517,2.00998059]
[1773166804304,49.98519054,86.599,86.555,10.396]
[1773166804505,49.98519054,86.599,86.517,2.00998059]
[1773166805213,49.94298625,86.589,86.49,9.10761892]
[1773166805404,49.94298625,86.589,86.497,2.01052057]
[1773166805813,49.94298625,86.599,86.51,9.10761892]
[1773166806118,49.94298625,86.639,86.53,9.10761892]
[1773166806311,49.94298625,86.639,86.55,9.10761892]
[1773166806615,49.93392703,86.663,86.609,10.389]
[1773166806811,49.93392703,86.663,86.59,9.10761892]
[1773166807118,49.93392703,86.663,86.61,10.389]
[1773166807313,161.386,86.736,86.61,10.389]
[1773166807314,49.93392703,86.687,86.61,9.10761892]
[1773166807707,49.93392703,86.719,86.653,10.384]
[1773166808012,49.93392703,86.719,86.63,9.10761892]
[1773166808209,49.93392703,86.719,86.656,10.384]
[1773166808408,49.93392703,86.719,86.612,34.4]
[1773166808609,49.93392703,86.719,86.63,9.10761892]
[1773166808815,49.84082316,86.717,86.63,9.10761892]
[1773166810407,49.86094265,86.714,86.653,10.384]
[1773166810608,49.86094265,86.714,86.61,9.10761892]
[1773166811013,49.86094265,86.699,86.641,10.386]
[1773166811615,60.23994265,86.699,86.63,10.387]
[1773166811910,60.23994265,86.699,86.59,9.10761892]
[1773166811911,49.86094265,86.699,86.59,9.10761892]
[1773166812109,161.378,86.74,86.59,9.10761892]
[1773166812110,49.86094265,86.675,86.613,10.389]
[1773166812416,49.86094265,86.675,86.554,20.793]
[1773166812417,49.86325435,86.659,86.57,9.10761892]
[1773166812809,49.86325435,86.639,86.54,9.10761892]
[1773166813008,49.86325435,86.619,86.52,9.10761892]
[1773166813809,49.86325435,86.616,86.5,20.805]
[1773166814024,9.10761892,86.64,86.497,2.01052057]
[1773166814025,49.86325435,86.599,86.497,2.01052057]
[1773166814216,49.86325435,86.579,86.49,9.10761892]
[1773166814411,49.86282084,86.577,86.514,10.401]
[1773166815012,49.86282084,86.577,86.526,10.399]
[1773166815217,49.86282084,86.577,86.487,2.01075291]
[1773166815417,49.86282084,86.577,86.49,9.10761892]
[1773166815611,49.86282084,86.577,86.487,2.01075291]
[1773166816012,9.96974413,86.67,86.526,161.776]
[1773166816208,10.383,86.665,86.582,10.393]
[1773166816409,23.3604694,86.69,86.56,23.3604694]
[1773166816612,23.3604694,86.69,86.534,161.761]
[1773166816613,23.3604694,86.71,86.58,23.3604694]
[1773166816808,23.3604694,86.72,86.58,23.3604694]
[1773166817017,10.38,86.691,86.58,23.3604694]
[1773166817215,23.3604694,86.7,86.58,23.3604694]
[1773166817721,10.38,86.686,86.625,10.387]
[1773166818020,24.89932089,86.699,86.587,161.662]
[1773166818215,24.89932089,86.699,86.6,23.3604694]
[1773166818416,24.89932089,86.699,86.601,161.635]
[1773166818711,24.87510805,86.724,86.62,23.3604694]
[1773166818916,24.87510805,86.679,86.547,161.736]
[1773166819118,24.87510805,86.679,86.55,23.3604694]
[1773166819317,24.87510805,86.679,86.554,20.792]
[1773166819817,24.87510741,86.659,86.536,161.758]
[1773166820321,24.87510741,86.655,86.589,10.392]
[1773166820521,24.87510741,86.655,86.53,23.3604694]
[1773166820522,24.87510741,86.655,86.545,20.795]
[1773166820818,24.87510741,86.655,86.529,161.771]
[1773166820819,24.85287616,86.68,86.572,161.69]
[1773166821123,24.85287616,86.719,86.61,23.3604694]
[1773166821317,24.85287616,86.719,86.665,10.383]
[1773166821522,24.85287616,86.719,86.602,161.634]
[1773166821523,24.85287616,86.719,86.63,23.3604694]
[1773166821717,24.85287616,86.719,86.63,34.90257042]
[1773166821913,24.85287616,86.719,86.622,20.776]
[1773166822312,24.85287616,86.719,86.61,34.90257042]
[1773166822514,34.90257042,86.74,86.582,161.671]
[1773166822515,24.89172147,86.715,86.59,34.90257042]
[1773166822716,24.89172147,86.715,86.582,161.671]
[1773166823018,24.89172147,86.699,86.58,34.90257042]
[1773166823721,24.89172147,86.689,86.583,161.67]
[1773166823923,24.89172147,86.729,86.62,34.90257042]
[1773166824419,24.89172147,86.729,86.64,34.90257042]
[1773166824627,24.89616467,86.76,86.709,10.377]
[1773166824927,24.89616467,86.789,86.68,34.90257042]
[1773166825320,24.89616467,86.789,86.723,10.376]
[1773166825517,24.89616467,86.789,86.66,161.526]
[1773166825518,24.89616467,86.789,86.65,196.44657042]
[1773166825721,24.89616467,86.789,86.65,34.90257042]
[1773166825921,24.89616467,86.773,86.69,10.38]
[1773166826522,24.89616467,86.773,86.65,34.90257042]
[1773166827429,24.91335112,86.76,86.694,10.379]
[1773166828124,24.91335112,86.789,86.67,34.90257042]
[1773166828524,24.91335112,86.789,86.69,34.90257042]
[1773166828820,24.91335112,86.789,86.66,34.90257042]
[1773166829022,24.95871442,86.765,86.66,34.90257042]
[1773166829224,24.95871442,86.765,86.677,10.381]
[1773166829424,24.95871442,86.765,86.64,34.90257042]
[1773166829425,24.95871442,86.765,86.66,34.90257042]
[1773166829827,24.95871442,86.765,86.699,10.379]
[1773166830222,24.95871442,86.765,86.68,34.90257042]
[1773166830428,24.95871442,86.765,86.722,10.376]
[1773166830825,24.97384185,86.792,86.722,10.376]
[1773166831327,24.97384185,86.789,86.722,10.376]
[1773166831524,24.97384185,86.789,86.71,10.377]
[1773166831926,24.97384185,86.787,86.68,34.90257042]
[1773166832625,24.97384185,86.787,86.722,10.376]
[1773166833222,24.97384185,86.787,86.642,21.30345622]
[1773166833223,24.9729995,86.786,86.66,34.90257042]
[1773166833824,24.9729995,86.777,86.706,10.378]
[1773166834223,24.9729995,86.777,86.68,34.90257042]
[1773166834625,24.9729995,86.777,86.66,34.90257042]
[1773166835021,24.94837325,86.763,86.64,34.90257042]
[1773166835424,24.94837325,86.763,86.66,34.90257042]
[1773166835625,24.94837325,86.76,86.66,34.90257042]
[1773166835834,24.94837325,86.76,86.66,196.42757042]
[1773166836129,24.94837325,86.819,86.702,161.447]
[1773166836325,24.94837325,86.819,86.72,34.90257042]
[1773166836532,24.94837325,86.819,86.788,10.368]
[1773166836726,24.93846643,86.848,86.741,161.375]
[1773166836933,24.93846643,86.848,86.74,34.90257042]
[1773166837232,24.93846643,86.876,86.781,161.3]
[1773166837528,24.93846643,86.876,86.8,34.90257042]
[1773166837730,24.93846643,86.876,86.788,5.0]
[1773166837928,24.93846643,86.919,86.78,34.90257042]
[1773166838129,24.93846643,86.899,86.76,34.90257042]
[1773166838326,24.94602454,86.841,86.765,10.371]
[1773166838527,24.94602454,86.839,86.72,34.90257042]
[1773166838925,24.94602454,86.819,86.753,10.372]
[1773166839130,24.94602454,86.819,86.72,34.90257042]
[1773166839931,34.90257042,86.9,86.663,484.558]
[1773166839932,24.94602454,86.843,86.74,34.90257042]
[1773166840127,24.94602454,86.843,86.72,34.90257042]
[1773166840327,24.99749078,86.828,86.766,10.371]
[1773166840526,24.99749078,86.828,86.72,34.90257042]
[1773166841033,24.99749078,86.824,86.765,10.371]
[1773166841228,24.99749078,86.824,86.72,39.90257042]
[1773166841628,35.36149078,86.822,86.72,39.90257042]
[1773166841829,24.99749078,86.821,86.72,39.90257042]
[1773166842530,24.99749078,86.821,86.759,10.371]
[1773166842832,24.99749078,86.821,86.72,34.90257042]
[1773166843426,24.99462401,86.844,86.74,34.90257042]
[1773166844041,24.99462401,86.879,86.76,34.90257042]
[1773166844230,24.99462401,86.879,86.78,34.90257042]
[1773166844728,24.99462401,86.879,86.76,34.90257042]
[1773166845228,24.99527346,86.865,86.806,10.366]
[1773166845624,24.99527346,86.865,86.76,34.90257042]
[1773166846028,24.99527346,86.852,86.784,10.368]
[1773166846326,24.99527346,86.852,86.74,34.90257042]
[1773166846532,24.99527346,86.852,86.717,20.753]
[1773166846533,24.99714501,86.839,86.759,10.371]
[1773166846830,24.99714501,86.839,86.72,34.90257042]
[1773166847028,24.99714501,86.819,86.7,34.90257042]
[1773166847330,24.99714501,86.805,86.7,34.90257042]
[1773166847638,24.99714501,86.805,86.756,10.372]
[1773166847931,24.99714501,86.805,86.7,34.90257042]
[1773166848126,24.99714501,86.805,86.673,20.764]
[1773166848431,24.99547447,86.779,86.652,161.54]
[1773166848822,24.99547447,86.768,86.708,10.378]
[1773166849424,24.99547222,86.766,86.698,10.379]
[1773166849628,24.99547222,86.766,86.65,34.90257042]
[1773166850228,24.99547222,86.766,86.651,20.769]
[1773166850531,25.01247504,86.754,86.684,10.38]
[1773166850923,25.01247504,86.754,86.681,10.381]
[1773166851430,25.01247504,86.752,86.631,34.4]
[1773166851727,25.01247504,86.752,86.572,21.01718428]
[1773166851728,25.01247504,86.729,86.591,20.784]
[1773166851927,25.01247504,86.707,86.638,10.386]
[1773166852136,25.01247504,86.707,86.58,161.674]
[1773166852137,25.01247504,86.707,86.58,34.90257042]
[1773166852330,25.06837152,86.73,86.62,34.90257042]
[1773166852531,25.06837152,86.73,86.665,10.383]
[1773166852727,25.06837152,86.73,86.62,34.90257042]
[1773166853226,25.06837152,86.729,86.664,10.383]
[1773166853431,25.06837152,86.729,86.62,34.90257042]
[1773166853628,25.06837152,86.729,86.652,10.384]
[1773166854124,25.06837152,86.726,86.65,10.384]
[1773166854326,25.06837152,86.726,86.63,34.90257042]
[1773166854527,25.06837152,86.726,86.61,34.90257042]
[1773166854732,161.329,86.766,86.609,10.389]
[1773166854733,25.06666309,86.691,86.609,10.389]
[1773166854931,25.06666309,86.679,86.553,161.726]
[1773166855129,25.06666309,86.679,86.55,34.90257042]
[1773166855732,25.06666309,86.679,86.599,10.391]
[1773166856433,34.90257042,86.68,86.599,10.391]
[1773166856434,25.06364412,86.674,86.599,10.391]
[1773166856634,25.06364412,86.674,86.587,10.392]
[1773166856835,25.06364412,86.674,86.55,34.90257042]
[1773166857135,25.06364412,86.659,86.587,10.392]
[1773166858236,25.06364412,86.647,86.54,34.90257042]
[1773166858637,25.06364412,86.647,86.56,34.90257042]
[1773166858837,25.06364412,86.647,86.599,10.391]
[1773166859334,25.06364412,86.647,86.56,34.90257042]
[1773166859840,25.06364412,86.647,86.586,10.392]
[1773166860139,25.06364412,86.647,86.56,34.90257042]
[1773166860440,25.0551499,86.699,86.6,34.90257042]
[1773166860739,25.0551499,86.699,86.59,34.90257042]
[1773166860938,34.90257042,86.73,86.59,34.90257042]
[1773166860939,25.0551499,86.698,86.59,34.90257042]
[1773166861134,25.0551499,86.698,86.591,161.654]
[1773166861434,25.0551499,86.698,86.59,34.90257042]
[1773166861630,25.0551499,86.722,86.61,34.90257042]
[1773166862041,25.0551499,86.721,86.663,10.383]
[1773166862244,25.0551499,86.721,86.63,34.90257042]
[1773166862735,25.06098161,86.769,86.631,34.4]
[1773166862937,25.06098161,86.769,86.65,34.90257042]
[1773166863140,25.06098161,86.755,86.685,10.38]
[1773166863340,25.06098161,86.755,86.65,34.90257042]
[1773166863539,25.06098161,86.755,86.67,34.90257042]
[1773166863933,34.90257042,86.8,86.67,34.90257042]
[1773166864136,10.369,86.778,86.709,10.377]
[1773166864438,34.90257042,86.82,86.69,34.90257042]
[1773166864839,10.368,86.79,86.69,34.90257042]
[1773166865237,20.718,86.867,86.69,34.90257042]
[1773166865440,34.90257042,86.82,86.69,34.90257042]
[1773166865745,10.366,86.804,86.69,34.90257042]
[1773166865943,16.41319226,86.819,86.69,34.90257042]
[1773166866343,16.41926613,86.792,86.724,10.376]
[1773166866545,16.41926613,86.792,86.69,34.90257042]
[1773166867343,16.41926613,86.823,86.71,34.90257042]
[1773166867542,16.41926613,86.809,86.69,34.90257042]
[1773166867844,16.41926613,86.809,86.67,34.90257042]
[1773166868042,16.41926613,86.759,86.63,34.90257042]
[1773166868232,16.41926613,86.759,86.65,34.90257042]
[1773166868739,16.40964284,86.753,86.682,10.381]
[1773166868937,16.40964284,86.753,86.65,34.90257042]
[1773166869446,16.40964284,86.777,86.67,34.90257042]
[1773166869639,16.40964284,86.766,86.709,10.377]
[1773166869841,16.40964284,86.766,86.67,34.90257042]
[1773166870048,16.40964284,86.759,86.64,34.90257042]
[1773166870238,16.40964284,86.759,86.695,10.379]
[1773166870443,16.40964284,86.759,86.66,34.90257042]
[1773166870846,16.41071094,86.782,86.68,34.90257042]
[1773166871642,10.371,86.761,86.697,10.379]
[1773166871949,16.41071094,86.782,86.68,34.90257042]
[1773166872446,16.41071094,86.782,86.714,10.377]
[1773166872642,16.41071094,86.782,86.68,34.90257042]
[1773166872840,2.00604118,86.825,86.66,34.90257042]
[1773166872841,16.41117009,86.779,86.66,34.90257042]
[1773166873348,16.41117009,86.751,86.66,34.90257042]
[1773166874847,16.41117009,86.751,86.642,20.771]
[1773166875045,16.41117009,86.751,86.644,161.556]
[1773166875241,16.41117009,86.751,86.66,34.90257042]
[1773166876651,16.41430966,86.749,86.686,10.38]
[1773166876952,16.41430966,86.749,86.66,34.90257042]
[1773166877142,16.41430966,86.749,86.695,10.379]
[1773166877346,16.41430966,86.749,86.648,20.77]
[1773166878052,16.41430966,86.747,86.685,10.38]
[1773166878750,34.90257042,86.78,86.685,10.38]
[1773166878751,16.40559461,86.745,86.685,10.38]
[1773166878949,16.40559461,86.745,86.64,34.90257042]
[1773166879146,10.373,86.743,86.64,34.90257042]
[1773166879346,16.4056091,86.743,86.64,34.90257042]
[1773166879553,16.4056091,86.743,86.66,9.11502625]
[1773166880053,16.4056091,86.743,86.643,20.771]
[1773166880054,16.4056091,86.743,86.65,9.11502625]
[1773166880248,10.374,86.739,86.689,10.38]
[1773166880955,16.43424984,86.795,86.72,9.11502625]
[1773166881356,16.43424984,86.795,86.76,10.371]
[1773166881653,16.43424984,86.795,86.74,9.11502625]
[1773166881848,16.43424984,86.795,86.72,9.11502625]
[1773166882148,16.43424984,86.789,86.7,9.11502625]
[1773166882349,16.43424984,86.789,86.72,9.11502625]
[1773166882943,16.43424984,86.789,86.74,10.374]
[1773166883849,16.43424984,86.789,86.729,10.375]
[1773166884053,16.43424984,86.789,86.72,9.10338602]
[1773166884957,16.43424984,86.789,86.738,10.374]
[1773166886054,16.54097953,86.813,86.72,9.10338602]
[1773166886256,161.082,86.899,86.74,9.10338602]
[1773166886257,16.53095614,86.836,86.74,9.10338602]
[1773166886454,16.53095614,86.836,86.76,9.10338602]
[1773166886654,16.53095614,86.825,86.74,9.10338602]
[1773166887258,16.53095614,86.816,86.761,10.371]
[1773166887457,16.53095614,86.816,86.72,9.10338602]
[1773166887757,16.53095614,86.816,86.74,9.10338602]
[1773166888252,16.53095614,86.816,86.767,10.371]
[1773166888454,16.542344,86.839,86.74,9.10338602]
[1773166888653,9.10338602,86.82,86.74,9.10338602]
[1773166888958,16.542344,86.819,86.74,9.10338602]
[1773166889160,16.542344,86.81,86.72,9.10338602]
[1773166890255,16.542344,86.808,86.72,9.10338602]
[1773166890651,16.54356405,86.779,86.725,10.375]
[1773166891362,16.54356405,86.779,86.7,9.10338602]
[1773166891756,16.54356405,86.779,86.737,10.374]
[1773166892152,9.10338602,86.8,86.72,9.10338602]
[1773166892456,16.59785051,86.797,86.744,10.373]
[1773166892652,16.59785051,86.797,86.72,9.10338602]
[1773166892856,16.59785051,86.776,86.7,9.10338602]
[1773166893362,16.59785051,86.776,86.722,10.376]
[1773166893562,16.59785051,86.776,86.7,9.10338602]
[1773166894058,9.10338602,86.8,86.737,10.374]
[1773166894059,10.368,86.793,86.737,10.374]
[1773166894259,16.59785051,86.798,86.703,20.757]
[1773166894465,16.59785051,86.798,86.71,9.10338602]
[1773166894964,16.61071094,86.788,86.729,10.375]
[1773166895266,16.61071094,86.779,86.69,9.10338602]
[1773166895466,16.61071094,86.779,86.73,10.375]
[1773166896058,16.61071094,86.779,86.71,9.10338602]
[1773166896059,16.61071094,86.776,86.721,10.376]
[1773166896360,16.60625011,86.759,86.67,9.10338602]
[1773166896559,16.60625011,86.75,86.694,10.379]
[1773166896757,16.60625011,86.75,86.68,9.10338602]
[1773166896956,16.60625011,86.779,86.68,9.10338602]
[1773166897161,16.60625011,86.779,86.661,20.767]
[1773166897162,16.60625011,86.779,86.7,9.10338602]
[1773166897458,16.60625011,86.777,86.7,9.10338602]
[1773166898565,16.59183448,86.799,86.72,9.10338602]
[1773166899461,16.59183448,86.798,86.71,9.10338602]
[1773166899657,16.59183448,86.798,86.703,20.757]
[1773166899866,16.59183448,86.798,86.71,9.10338602]
[1773166900563,16.59305989,86.796,86.744,10.373]
[1773166900963,16.59305989,86.796,86.71,9.10338602]
[1773166901170,16.59305989,86.786,86.71,9.10338602]
[1773166901762,16.59305989,86.778,86.73,10.375]
[1773166901964,16.59305989,86.778,86.69,9.10338602]
[1773166902157,16.59305989,86.778,86.64,9.10338602]
[1773166902158,16.59305989,86.759,86.65,9.10338602]
[1773166902459,9.10338602,86.76,86.65,9.10338602]
[1773166902460,16.59337721,86.746,86.65,9.10338602]
[1773166902963,9.10338602,86.76,86.694,10.379]
[1773166902964,16.59337721,86.743,86.694,10.379]
[1773166903573,16.59337721,86.74,86.65,9.10338602]
[1773166903972,16.59337721,86.739,86.65,9.10338602]
[1773166904161,16.59337721,86.729,86.65,9.10338602]
[1773166905570,16.59337721,86.729,86.63,9.10338602]
[1773166905767,16.5808568,86.719,86.63,9.10338602]
[1773166906565,16.57926736,86.709,86.63,9.10338602]
[1773166906766,16.57926736,86.699,86.61,9.10338602]
[1773166906974,16.57926736,86.724,86.63,9.10338602]
[1773166907365,16.57926736,86.709,86.63,9.10338602]
[1773166908474,16.57681239,86.708,86.646,10.385]
[1773166908874,16.57681239,86.708,86.63,9.10338602]
[1773166909276,16.57678769,86.73,86.65,9.10338602]
[1773166909577,16.57678769,86.73,86.67,9.10338602]
[1773166909771,16.57678769,86.73,86.688,10.38]
[1773166910774,16.57678769,86.73,86.697,10.379]
[1773166910977,16.57678769,86.73,86.65,9.10338602]
[1773166911377,16.57678769,86.73,86.674,10.382]
[1773166911776,16.57678769,86.73,86.65,9.10338602]
[1773166912576,16.5734283,86.718,86.63,9.10338602]
[1773166913180,16.5734283,86.695,86.634,10.386]
[1773166913372,16.5734283,86.695,86.63,9.10338602]
[1773166914476,16.5734283,86.695,86.61,9.10338602]
[1773166914881,11.38524991,86.694,86.61,9.10338602]
[1773166915673,11.38524991,86.679,86.59,9.10338602]
[1773166916176,11.38524991,86.665,86.57,9.10338602]
[1773166916775,11.3808492,86.654,86.597,10.391]
[1773166917179,11.3808492,86.654,86.607,10.39]
[1773166917380,11.3808492,86.654,86.57,9.10338602]
[1773166917580,11.3808492,86.639,86.55,29.89738602]
[1773166917983,11.3808492,86.639,86.589,10.392]
[1773166918275,11.3808492,86.639,86.55,9.10338602]
[1773166918581,11.3808492,86.639,86.57,9.10338602]
[1773166919286,11.3808492,86.639,86.615,10.389]
[1773166920380,11.37054795,86.663,86.615,10.389]
[1773166920576,9.10338602,86.7,86.553,20.793]
[1773166920577,6.17604795,86.649,86.565,5.0]
[1773166920783,6.17604795,86.649,86.56,9.10338602]
[1773166921180,6.17604795,86.645,86.54,9.10338602]
[1773166921375,6.17604795,86.629,86.54,9.10338602]
[1773166921575,9.10338602,86.63,86.52,9.10338602]
[1773166921576,6.17604795,86.615,86.52,9.10338602]
[1773166921980,6.17604795,86.609,86.52,9.10338602]
[1773166922186,6.17604795,86.605,86.553,10.396]
[1773166922384,6.17604795,86.605,86.52,9.10338602]
[1773166922989,6.16847242,86.594,86.478,20.811]
[1773166923283,6.16847242,86.594,86.465,161.889]
[1773166923284,6.16847242,86.594,86.52,9.10338602]
[1773166923690,6.16847242,86.594,86.5,9.10338602]
[1773166924082,6.16847242,86.581,86.5,9.10338602]
[1773166924283,6.14867115,86.569,86.445,161.927]
[1773166924482,6.14867115,86.569,86.477,2.01091557]
[1773166924682,20.776,86.622,86.477,2.01091557]
[1773166924683,6.14867115,86.559,86.477,2.01091557]
[1773166924882,6.14867115,86.559,86.48,9.10338602]
[1773166925388,6.14867115,86.559,86.5,10.403]
[1773166925682,6.14867115,86.629,86.51,9.10338602]
[1773166925887,6.14867115,86.591,86.51,9.10338602]
[1773166926284,6.14319844,86.582,86.49,9.10338602]
[1773166926790,6.14319844,86.581,86.51,9.10338602]
[1773166927684,6.14319844,86.581,86.49,9.10338602]
[1773166928180,6.14319844,86.579,86.49,9.10338602]
[1773166928379,6.08853826,86.569,86.477,2.01091557]
[1773166928985,6.08853826,86.569,86.508,10.402]
[1773166929289,6.08853826,86.569,86.477,2.01091557]
[1773166929686,6.08853826,86.559,86.47,9.10338602]
[1773166930083,6.08853826,86.559,86.477,2.01115962]
[1773166930487,6.08953266,86.556,86.502,10.402]
[1773166931189,10.396,86.557,86.477,2.01115962]
[1773166931190,6.08953266,86.553,86.492,10.404]
[1773166931382,3.89719682,86.539,86.44,13.07679318]
[1773166931581,3.89719682,86.539,86.468,3.97340716]
[1773166931984,3.89719682,86.539,86.45,9.10338602]
[1773166932184,3.89719682,86.539,86.452,3.97340716]
[1773166932492,3.89719682,86.539,86.457,2.0114793]
[1773166932895,3.89719682,86.539,86.471,3.97340716]
[1773166933991,3.89719682,86.569,86.471,3.97340716]
[1773166934194,3.89719682,86.566,86.471,3.97340716]
[1773166935188,9.10338602,86.57,86.471,3.97340716]
[1773166935189,3.89719682,86.563,86.471,3.97340716]
[1773166935394,3.89719682,86.539,86.457,2.0114793]
[1773166935984,10.398,86.537,86.457,2.0114793]
[1773166936183,3.89719682,86.536,86.457,2.0114793]
[1773166936586,3.89719682,86.53,86.481,10.405]
[1773166936893,3.89719682,86.53,86.458,3.97340716]
[1773166937089,3.89719682,86.559,86.47,9.10338602]
[1773166937888,3.89719682,86.548,86.5,10.403]
[1773166938089,3.89719682,86.548,86.471,3.97340716]
[1773166938389,3.89719682,86.548,86.494,10.403]
[1773166938793,3.89719682,86.548,86.471,3.97340716]
[1773166940695,3.87920194,86.573,86.541,10.398]
[1773166940896,3.87920194,86.629,86.531,3.92693297]
[1773166941095,3.87920194,86.629,86.551,3.92693297]
[1773166941394,3.87920194,86.659,86.571,3.92693297]
[1773166941603,3.87920194,86.649,86.571,3.92693297]
[1773166941795,3.87920194,86.649,86.495,161.833]
[1773166941796,3.87920194,86.627,86.549,3.92693297]
[1773166942194,3.87920194,86.678,86.6,9.10338602]
[1773166942396,3.87920194,86.678,86.616,10.389]
[1773166942598,3.87920194,86.678,86.591,3.92693297]
[1773166942896,9.10338602,86.72,86.662,10.383]
[1773166943094,184.78,86.749,86.59,9.10338602]
[1773166943095,3.87920194,86.699,86.613,3.92693297]
[1773166943295,3.87920194,86.699,86.591,3.92693297]
[1773166943494,9.10338602,86.7,86.591,3.92693297]
[1773166943495,3.87920194,86.68,86.591,3.92693297]
[1773166944288,3.87920194,86.666,86.57,9.10338602]
[1773166944492,3.87920194,86.659,86.571,3.92693297]
[1773166944997,3.87920194,86.646,86.571,3.92693297]
[1773166945698,3.87920194,86.646,86.594,10.391]
[1773166946201,3.87920194,86.646,86.571,3.92693297]
[1773166946202,3.87920194,86.669,86.604,10.39]
[1773166946702,3.87920194,86.666,86.604,10.39]
[1773166947094,3.87920194,86.666,86.59,9.13557692]
[1773166947299,3.87920194,86.666,86.602,10.39]
[1773166947996,13.01477886,86.66,86.591,10.392]
[1773166948400,3.87920194,86.648,86.524,3.92693297]
[1773166948698,9.13557692,86.6,86.524,3.92693297]
[1773166948899,10.392,86.589,86.517,10.401]
[1773166949104,9.13557692,86.61,86.521,3.92693297]
[1773166949302,3.87920194,86.609,86.521,3.92693297]
[1773166949803,3.87920194,86.609,86.466,161.888]
[1773166949804,3.87920194,86.589,86.501,3.92693297]
[1773166950402,3.87920194,86.589,86.529,10.399]
[1773166950705,3.87920194,86.619,86.521,3.92693297]
[1773166950902,3.87920194,86.603,86.538,10.398]
[1773166951101,3.87920194,86.603,86.521,3.92693297]
[1773166951296,10.389,86.617,86.545,10.397]
[1773166951499,3.87920194,86.616,86.545,10.397]
[1773166951808,3.87920194,86.616,86.54,3.92693297]
[1773166952308,3.87920194,86.599,86.517,3.92693297]
[1773166952603,3.87920194,86.571,86.511,10.401]